bitfinex/quotes_BTCUSD_20240803
["timestamp","ask_amount","ask_price","bid_price","bid_amount"]
[1722688977926,0.27803724,62200.0,62197.0,0.0879633]
[1722688978627,0.120577,62201.0,62197.0,0.0879633]
[1722688978867,0.001,62200.0,62197.0,0.0879633]
[1722688979373,0.27803624,62201.0,62197.0,0.0879633]
[1722688979861,0.28003624,62201.0,62197.0,0.0879633]
[1722688980330,0.002,62200.0,62197.0,0.0879633]
[1722688980823,0.002,62200.0,62197.0,0.2085463]
[1722688981059,0.002,62200.0,62199.0,0.26328]
[1722688981298,0.03,62202.0,62200.0,0.0636]
[1722688981815,0.03,62202.0,62201.0,0.02754795]
[1722688983133,0.033,62202.0,62201.0,0.02754795]
[1722688983962,0.038,62202.0,62201.0,0.02754795]
[1722688986618,0.038,62202.0,62201.0,0.14812395]
[1722688986824,0.038,62202.0,62201.0,0.02754795]
[1722688988047,0.038,62202.0,62201.0,0.29082395]
[1722688988248,0.038,62202.0,62201.0,0.17024795]
[1722688991419,0.038,62202.0,62201.0,0.02754795]
[1722688991420,0.31603324,62202.0,62201.0,0.02754795]
[1722688991634,0.55718224,62202.0,62201.0,0.02754795]
[1722688992472,0.602882,62201.0,62200.0,0.000913]
[1722688992679,0.76034124,62201.0,62200.0,0.000913]
[1722688993094,0.84051573,62201.0,62200.0,0.000913]
[1722688993301,0.76034124,62201.0,62200.0,0.000913]
[1722688993710,0.76334124,62201.0,62200.0,0.000913]
[1722688994125,0.76534124,62201.0,62200.0,0.000913]
[1722688994952,0.8454932,62201.0,62200.0,0.000913]
[1722688995121,0.99109369,62201.0,62200.0,0.000913]
[1722688995332,0.91094124,62201.0,62200.0,0.000913]
[1722688995743,1.15209424,62201.0,62200.0,0.000913]
[1722688995943,1.27195189,62201.0,62200.0,0.000913]
[1722688998271,1.27195248,62201.0,62200.0,0.000913]
[1722688998682,1.2552475,62201.0,62200.0,0.000913]
[1722688998884,1.27195334,62201.0,62200.0,0.000913]
[1722688999080,1.98110634,62201.0,62200.0,0.000913]
[1722688999284,2.4214193,62201.0,62200.0,0.000913]
[1722688999482,2.34910634,62201.0,62200.0,0.000913]
[1722688999684,2.45525711,62201.0,62200.0,0.000913]
[1722689000005,2.45025711,62201.0,62200.0,0.000913]
[1722689000169,2.4802585,62201.0,62200.0,0.000913]
[1722689000365,2.4972585,62201.0,62200.0,0.000913]
[1722689000574,2.4008755,62201.0,62200.0,0.000913]
[1722689000811,2.3808755,62201.0,62200.0,0.000913]
[1722689001010,2.4772915,62201.0,62200.0,0.000913]
[1722689001343,2.4692915,62201.0,62200.0,0.000913]
[1722689001503,2.3868755,62201.0,62200.0,0.000913]
[1722689001708,2.30672224,62201.0,62200.0,0.000913]
[1722689001912,2.44953768,62201.0,62200.0,0.000913]
[1722689002252,2.37823373,62201.0,62200.0,0.000913]
[1722689002597,2.46453768,62201.0,62200.0,0.000913]
[1722689002810,2.37823373,62201.0,62200.0,0.000913]
[1722689003144,2.36423373,62201.0,62200.0,0.000913]
[1722689003348,2.43652778,62201.0,62200.0,0.000913]
[1722689003625,2.45052778,62201.0,62200.0,0.000913]
[1722689003816,2.46452778,62201.0,62200.0,0.000913]
[1722689004368,2.46452306,62201.0,62200.0,0.000913]
[1722689005320,2.39223373,62201.0,62200.0,0.000913]
[1722689005498,2.48451899,62201.0,62200.0,0.000913]
[1722689005868,2.48504118,62201.0,62200.0,0.000913]
[1722689006402,2.48503483,62201.0,62200.0,0.000913]
[1722689006753,2.41275592,62201.0,62200.0,0.000913]
[1722689006948,2.48912914,62201.0,62200.0,0.000913]
[1722689007785,2.88578214,62201.0,62200.0,0.000913]
[1722689007990,2.88578214,62201.0,62196.0,0.009955]
[1722689007991,1.178491,62197.0,62196.0,0.009955]
[1722689008194,2.4686515,62197.0,62196.0,0.009955]
[1722689008446,2.69979148,62197.0,62196.0,0.009955]
[1722689009288,2.51232862,62197.0,62196.0,0.009955]
[1722689009481,2.59303293,62197.0,62196.0,0.009955]
[1722689009676,2.59303273,62197.0,62196.0,0.009955]
[1722689010149,2.59312875,62197.0,62196.0,0.009955]
[1722689010551,2.67535322,62197.0,62196.0,0.009955]
[1722689010798,2.66535322,62197.0,62196.0,0.009955]
[1722689011119,2.67935322,62197.0,62196.0,0.009955]
[1722689011315,2.68935322,62197.0,62196.0,0.009955]
[1722689011521,2.67935322,62197.0,62196.0,0.009955]
[1722689012572,2.61712875,62197.0,62196.0,0.009955]
[1722689013188,2.60712875,62197.0,62196.0,0.009955]
[1722689013395,2.61737093,62197.0,62196.0,0.009955]
[1722689014449,1.465246,62192.0,62191.0,0.000913]
[1722689014655,1.70374775,62192.0,62191.0,0.000913]
[1722689014856,1.82674775,62192.0,62191.0,0.000913]
[1722689015901,1.84074775,62192.0,62191.0,0.000913]
[1722689016490,1.85474775,62192.0,62191.0,0.000913]
[1722689019330,1.86474775,62192.0,62191.0,0.000913]
[1722689019779,1.85474775,62192.0,62191.0,0.000913]
[1722689020358,1.60420524,62192.0,62191.0,0.000913]
[1722689020559,1.68504953,62192.0,62191.0,0.000913]
[1722689020924,1.61420524,62192.0,62191.0,0.000913]
[1722689021040,1.69504953,62192.0,62191.0,0.000913]
[1722689022483,1.68504953,62192.0,62191.0,0.000913]
[1722689022686,1.61034953,62192.0,62191.0,0.000913]
[1722689023179,1.62002256,62192.0,62191.0,0.000913]
[1722689023454,1.29863456,62192.0,62191.0,0.000913]
[1722689024064,1.29812988,62192.0,62191.0,0.000913]
[1722689024281,1.31483843,62192.0,62191.0,0.000913]
[1722689027977,1.31483843,62192.0,62191.0,0.000713]
[1722689029986,1.46783843,62192.0,62191.0,0.000713]
[1722689030388,1.70902643,62192.0,62191.0,0.000713]
[1722689031149,1.62197827,62192.0,62191.0,0.000713]
[1722689031324,1.71872379,62192.0,62191.0,0.000713]
[1722689031525,1.70201417,62192.0,62191.0,0.000713]
[1722689031723,1.70872703,62192.0,62191.0,0.000713]
[1722689033636,1.88822703,62192.0,62191.0,0.000713]
[1722689034494,1.96040586,62192.0,62191.0,0.000713]
[1722689034699,2.09896917,62192.0,62191.0,0.000713]
[1722689034900,2.09804561,62192.0,62191.0,0.000713]
[1722689035383,1.99180716,62192.0,62191.0,0.000713]
[1722689035590,2.08814001,62192.0,62191.0,0.000713]
[1722689035789,1.97363732,62192.0,62191.0,0.000713]
[1722689036047,2.08830104,62192.0,62191.0,0.000713]
[1722689036249,1.87730447,62192.0,62191.0,0.000713]
[1722689036457,1.97363732,62192.0,62191.0,0.000713]
[1722689036630,1.99175912,62192.0,62191.0,0.000713]
[1722689037041,1.97366228,62192.0,62191.0,0.000713]
[1722689037401,1.87730447,62192.0,62191.0,0.000713]
[1722689038028,1.99187925,62192.0,62191.0,0.000713]
[1722689038240,2.11217731,62192.0,62191.0,0.000713]
[1722689038608,2.12217698,62192.0,62191.0,0.000713]
[1722689038809,2.11217698,62192.0,62191.0,0.000713]
[1722689039011,2.12217698,62192.0,62191.0,0.000713]
[1722689039212,2.12238542,62192.0,62191.0,0.000713]
[1722689039420,2.11238542,62192.0,62191.0,0.000713]
[1722689039834,2.12238542,62192.0,62191.0,0.000713]
[1722689040549,2.00187892,62192.0,62191.0,0.000713]
[1722689041290,2.00187879,62192.0,62191.0,0.000713]
[1722689041899,1.99187879,62192.0,62191.0,0.000713]
[1722689042113,1.25811601,62192.0,62191.0,0.000713]
[1722689042356,1.23511601,62192.0,62191.0,0.000713]
[1722689042557,1.36296535,62192.0,62191.0,0.000713]
[1722689042761,1.29061601,62192.0,62191.0,0.000713]
[1722689043551,1.41009979,62192.0,62191.0,0.000713]
[1722689044369,1.3136151,62192.0,62191.0,0.000713]
[1722689044570,1.43418958,62192.0,62191.0,0.000713]
[1722689045343,1.3136151,62192.0,62191.0,0.000713]
[1722689046383,1.43418958,62192.0,62191.0,0.000713]
[1722689047653,1.3136151,62192.0,62191.0,0.000713]
[1722689047843,1.43427136,62192.0,62191.0,0.000713]
[1722689049428,1.3136151,62192.0,62191.0,0.000713]
[1722689050210,2.0496151,62192.0,62191.0,0.000713]
[1722689051015,2.17031453,62192.0,62191.0,0.000713]
[1722689051227,2.0496151,62192.0,62191.0,0.000713]
[1722689051455,1.95379027,62192.0,62191.0,0.000713]
[1722689051656,2.03124786,62192.0,62191.0,0.000713]
[1722689051857,1.95379027,62192.0,62191.0,0.000713]
[1722689052062,2.03124714,62192.0,62191.0,0.000713]
[1722689052288,2.03207714,62192.0,62191.0,0.000713]
[1722689054254,2.15282317,62192.0,62191.0,0.000713]
[1722689054604,2.04878586,62192.0,62191.0,0.000713]
[1722689054809,2.16953233,62192.0,62191.0,0.000713]
[1722689055034,2.07536674,62192.0,62191.0,0.000713]
[1722689055322,2.16943058,62192.0,62191.0,0.000713]
[1722689057135,2.16942495,62192.0,62191.0,0.000713]
[1722689057542,2.16942495,62192.0,62191.0,0.082813]
[1722689057724,2.16942495,62192.0,62191.0,0.08275198]
[1722689058550,2.04868411,62192.0,62191.0,0.14645198]
[1722689058789,2.04892031,62192.0,62191.0,0.14645198]
[1722689058947,2.1455082,62192.0,62191.0,0.14645198]
[1722689059142,2.14550602,62192.0,62191.0,0.14645198]
[1722689059527,2.14550423,62192.0,62191.0,0.14645198]
[1722689060580,2.12879587,62192.0,62191.0,0.14645198]
[1722689060828,1.80773214,62192.0,62191.0,0.14645198]
[1722689060959,1.96585414,62192.0,62191.0,0.14645198]
[1722689061226,1.87671195,62192.0,62191.0,0.14645198]
[1722689062173,1.93221195,62192.0,62191.0,0.14645198]
[1722689062611,1.85462027,62192.0,62191.0,0.14645198]
[1722689062832,1.93190318,62192.0,62191.0,0.14645198]
[1722689062977,1.87640318,62192.0,62191.0,0.14645198]
[1722689063601,1.63521518,62192.0,62191.0,0.14645198]
[1722689064042,1.69071518,62192.0,62191.0,0.14645198]
[1722689064662,1.52525924,62192.0,62191.0,0.14645198]
[1722689066010,1.04288324,62192.0,62191.0,0.14645198]
[1722689066417,0.02883,62192.0,62191.0,0.39692549]
[1722689066618,0.02883,62192.0,62191.0,0.78454519]
[1722689066811,0.02883,62192.0,62191.0,0.90708681]
[1722689067043,0.01483,62192.0,62191.0,0.78454519]
[1722689067278,0.00083,62192.0,62191.0,0.90704844]
[1722689067494,0.03,62193.0,62192.0,0.75595151]
[1722689067687,0.12056,62210.0,62209.0,0.00928151]
[1722689067927,0.27801924,62210.0,62209.0,0.00928151]
[1722689068123,0.51913724,62210.0,62209.0,0.00928151]
[1722689068325,0.51913724,62210.0,62209.0,0.15298151]
[1722689069496,0.52913724,62210.0,62209.0,0.15298151]
[1722689069672,0.54013724,62210.0,62209.0,0.15298151]
[1722689070615,0.78125524,62210.0,62209.0,0.15298151]
[1722689070728,0.120567,62206.0,62205.0,0.0829]
[1722689070931,0.57466024,62206.0,62205.0,0.0829]
[1722689071132,0.15745924,62206.0,62205.0,0.15298151]
[1722689071351,0.27802624,62206.0,62205.0,0.17874758]
[1722689071550,0.51916024,62206.0,62205.0,0.17874758]
[1722689071947,0.52916024,62206.0,62205.0,0.17874758]
[1722689072364,0.52816024,62206.0,62205.0,0.15298151]
[1722689072773,0.53616024,62206.0,62205.0,0.15298151]
[1722689073406,0.29502624,62206.0,62205.0,0.15298151]
[1722689073605,0.17445924,62206.0,62205.0,0.17874957]
[1722689073873,0.29502624,62206.0,62205.0,0.17874957]
[1722689075030,0.17445924,62206.0,62205.0,0.17874957]
[1722689075232,0.17445924,62206.0,62205.0,0.16844234]
[1722689077013,0.29502624,62206.0,62205.0,0.16844234]
[1722689077187,0.17445924,62206.0,62205.0,0.16844234]
[1722689077941,0.29502624,62206.0,62205.0,0.16844234]
[1722689079355,0.29502624,62206.0,62205.0,0.15298151]
[1722689079582,0.29502624,62206.0,62205.0,0.16581869]
[1722689082957,0.53616024,62206.0,62205.0,0.16581869]
[1722689083153,0.53616024,62206.0,62205.0,0.15298151]
[1722689084465,0.77729424,62206.0,62205.0,0.15653316]
[1722689084669,0.77729424,62206.0,62202.0,0.15178151]
[1722689084670,0.361717,62203.0,62202.0,0.15178151]
[1722689084796,0.51917624,62203.0,62202.0,0.15178151]
[1722689084999,0.39860424,62203.0,62202.0,0.1646183]
[1722689085207,0.39860424,62203.0,62202.0,0.15178151]
[1722689085413,0.76032124,62203.0,62202.0,0.1646183]
[1722689085632,0.76032124,62203.0,62202.0,0.15178151]
[1722689085808,0.76932124,62203.0,62202.0,0.15178151]
[1722689086373,0.77032124,62203.0,62202.0,0.15178151]
[1722689086733,0.77932124,62203.0,62202.0,0.15178151]
[1722689087447,0.77932124,62203.0,62198.0,0.0822]
[1722689087448,0.361741,62199.0,62198.0,0.0822]
[1722689087641,0.361741,62199.0,62198.0,0.09148151]
[1722689087642,0.76036124,62199.0,62198.0,0.09148151]
[1722689087888,0.76036124,62199.0,62198.0,0.10432346]
[1722689088090,0.76036124,62199.0,62198.0,0.15178151]
[1722689088836,0.76536124,62199.0,62198.0,0.15178151]
[1722689089751,0.77036124,62199.0,62198.0,0.15178151]
[1722689091445,0.52920024,62199.0,62198.0,0.15178151]
[1722689092669,0.52920024,62199.0,62198.0,0.16463022]
[1722689092897,0.52920024,62199.0,62198.0,0.15178151]
[1722689093091,0.52920024,62199.0,62198.0,0.16462885]
[1722689094133,0.52920024,62199.0,62198.0,0.15178151]
[1722689094541,0.52920024,62199.0,62198.0,0.16508034]
[1722689094542,0.28803924,62199.0,62198.0,0.16508034]
[1722689094714,0.52920024,62199.0,62198.0,0.16508034]
[1722689096846,0.16745924,62199.0,62198.0,0.16508034]
[1722689098040,0.01,62199.0,62198.0,0.16508034]
[1722689098644,0.01,62199.0,62198.0,0.28566234]
[1722689098854,0.01,62199.0,62198.0,0.16508034]
[1722689100119,0.01,62199.0,62198.0,0.15178151]
[1722689100379,0.01,62199.0,62198.0,0.16506711]
[1722689103456,0.52920024,62199.0,62198.0,0.16506711]
[1722689103669,0.52920024,62199.0,62198.0,0.15178151]
[1722689103670,0.77036124,62199.0,62198.0,0.15178151]
[1722689103871,0.77036124,62199.0,62198.0,0.00928151]
[1722689104254,0.77036124,62199.0,62197.0,0.00928151]
[1722689104255,0.602912,62198.0,62197.0,0.00928151]
[1722689104422,0.76037124,62198.0,62197.0,0.00928151]
[1722689104626,0.76037124,62198.0,62197.0,0.02256656]
[1722689105385,0.28204124,62198.0,62197.0,0.02256656]
[1722689105607,0.004,62198.0,62197.0,0.16516656]
[1722689105806,0.004,62198.0,62197.0,0.28575056]
[1722689106014,0.008,62198.0,62197.0,0.28575056]
[1722689106215,0.008,62198.0,62197.0,0.52691956]
[1722689106588,0.008,62198.0,62197.0,0.40875339]
[1722689106814,0.008,62198.0,62197.0,0.28575056]
[1722689107214,0.008,62198.0,62197.0,0.52691956]
[1722689107455,0.004,62198.0,62197.0,0.52691956]
[1722689107717,0.856571,62204.0,62203.0,0.08918151]
[1722689107936,1.01403024,62204.0,62203.0,0.16516482]
[1722689108558,1.25517224,62204.0,62203.0,0.15188151]
[1722689108960,1.25917224,62204.0,62203.0,0.15188151]
[1722689109397,1.01803024,62204.0,62203.0,0.15188151]
[1722689109590,1.01803024,62204.0,62203.0,0.16520238]
[1722689109591,0.89745924,62204.0,62203.0,0.16520238]
[1722689110046,0.74,62204.0,62203.0,0.16520238]
[1722689110290,0.864571,62204.0,62203.0,0.16520238]
[1722689110896,0.744,62204.0,62203.0,0.16520238]
[1722689111718,1.50431424,62204.0,62203.0,0.01332087]
[1722689111949,1.74545624,62204.0,62199.0,0.00928151]
[1722689112182,0.361747,62198.0,62197.0,0.00928151]
[1722689112345,0.76037124,62198.0,62197.0,0.00928151]
[1722689113345,0.76037124,62198.0,62197.0,0.02259535]
[1722689114391,1.08003624,62198.0,62197.0,0.01331384]
[1722689114622,0.68147,62192.0,62191.0,0.49325198]
[1722689114823,1.15790644,62192.0,62191.0,0.49325198]
[1722689115022,1.08011724,62192.0,62191.0,0.49325198]
[1722689117420,1.09411724,62192.0,62191.0,0.49325198]
[1722689117858,1.08011724,62192.0,62191.0,0.49325198]
[1722689118034,1.10611724,62192.0,62191.0,0.49325198]
[1722689118657,1.09411724,62192.0,62191.0,0.49325198]
[1722689119015,1.01561724,62192.0,62191.0,0.49325198]
[1722689119240,1.01561724,62192.0,62191.0,0.55895198]
[1722689119241,0.78742924,62192.0,62191.0,0.55895198]
[1722689121093,0.54624124,62192.0,62191.0,0.55895198]
[1722689121424,0.78742924,62192.0,62191.0,0.64085198]
[1722689124116,0.78742924,62192.0,62191.0,0.49325198]
[1722689124251,0.86382924,62192.0,62191.0,0.49325198]
[1722689124905,1.82701724,62192.0,62191.0,0.49325198]
[1722689125292,1.96581724,62192.0,62191.0,0.49325198]
[1722689125870,1.98881724,62192.0,62191.0,0.49325198]
[1722689126924,1.97581724,62192.0,62191.0,0.49325198]
[1722689127115,1.98981724,62192.0,62191.0,0.49325198]
[1722689127473,1.97581724,62192.0,62191.0,0.49325198]
[1722689128391,1.98981724,62192.0,62191.0,0.49325198]
[1722689130435,2.23100524,62192.0,62191.0,0.49325198]
[1722689130891,2.06719568,62192.0,62191.0,0.49325198]
[1722689131104,2.30838368,62192.0,62191.0,0.49325198]
[1722689131302,2.06719568,62192.0,62191.0,0.49325198]
[1722689131473,2.30838368,62192.0,62191.0,0.49325198]
[1722689131683,2.28038368,62192.0,62191.0,0.49325198]
[1722689131854,2.29438368,62192.0,62191.0,0.49325198]
[1722689132053,2.36878368,62192.0,62191.0,0.49325198]
[1722689132536,2.37878368,62192.0,62191.0,0.49325198]
[1722689132670,3.01628368,62192.0,62191.0,0.49325198]
[1722689132879,3.00228368,62192.0,62191.0,0.49325198]
[1722689133115,3.09860773,62192.0,62191.0,0.49325198]
[1722689133334,3.36387674,62192.0,62191.0,0.49325198]
[1722689133636,3.07397168,62192.0,62191.0,0.49325198]
[1722689133812,2.93918874,62192.0,62191.0,0.49325198]
[1722689134015,3.18037674,62192.0,62191.0,0.49325198]
[1722689134204,3.19437674,62192.0,62191.0,0.49325198]
[1722689134404,3.07397168,62192.0,62191.0,0.49325198]
[1722689134640,2.81878368,62192.0,62191.0,0.49325198]
[1722689135118,2.84678368,62192.0,62191.0,0.49325198]
[1722689135403,2.84278368,62192.0,62191.0,0.49325198]
[1722689135601,2.85678368,62192.0,62191.0,0.49325198]
[1722689135812,2.77940524,62192.0,62191.0,0.49325198]
[1722689136008,3.09836781,62192.0,62191.0,0.49325198]
[1722689136430,3.36411731,62192.0,62191.0,0.42893398]
[1722689136633,3.4252233,62192.0,62191.0,0.33245698]
[1722689136917,3.3972233,62192.0,62191.0,0.33245698]
[1722689137051,3.4112233,62192.0,62191.0,0.30029798]
[1722689137249,3.48338047,62192.0,62191.0,0.20382098]
[1722689137450,3.3972233,62192.0,62191.0,0.17166198]
[1722689137652,3.23986813,62192.0,62191.0,0.17166198]
[1722689137953,3.25386813,62192.0,62191.0,0.17166198]
[1722689138141,3.25386813,62192.0,62191.0,0.10734398]
[1722689138375,3.26786813,62192.0,62191.0,0.01086698]
[1722689138573,3.25458662,62192.0,62191.0,0.01086698]
[1722689139014,3.26858662,62192.0,62191.0,0.01086698]
[1722689139216,3.66708662,62192.0,62191.0,9.8e-07]
[1722689139817,3.82444179,62192.0,62191.0,9.8e-07]
[1722689140154,3.82652424,62192.0,62191.0,9.8e-07]
[1722689140500,3.66916907,62192.0,62191.0,9.8e-07]
[1722689140701,3.66916907,62192.0,62171.0,0.0657]
[1722689140702,0.844431,62172.0,62171.0,0.0657]
[1722689140906,0.361909,62170.0,62169.0,0.0623]
[1722689141102,1.00191424,62170.0,62169.0,0.0623]
[1722689142137,0.844483,62168.0,62167.0,0.072255]
[1722689142329,1.00194224,62168.0,62167.0,0.072255]
[1722689144530,1.00994224,62168.0,62167.0,0.072255]
[1722689144993,0.76866124,62168.0,62167.0,0.150355]
[1722689145350,0.77766124,62168.0,62167.0,0.150355]
[1722689147837,1.01894224,62168.0,62167.0,0.150355]
[1722689148329,1.01894224,62168.0,62167.0,0.072255]
[1722689148764,1.02854935,62168.0,62167.0,0.072255]
[1722689149280,1.02854935,62168.0,62167.0,0.009955]
[1722689149489,1.05154935,62168.0,62167.0,0.009955]
[1722689150530,1.13104935,62168.0,62167.0,0.009955]
[1722689151624,1.29354935,62168.0,62167.0,0.009955]
[1722689151825,1.83483035,62168.0,62167.0,0.009955]
[1722689152271,1.91159411,62168.0,62167.0,0.009955]
[1722689152477,1.90359411,62168.0,62167.0,0.009955]
[1722689152608,1.89459411,62168.0,62167.0,0.009955]
[1722689152808,1.91859411,62168.0,62167.0,0.009955]
[1722689153034,1.40383035,62168.0,62167.0,0.009955]
[1722689153239,1.17254935,62168.0,62167.0,0.009955]
[1722689153453,1.22133737,62168.0,62167.0,0.009955]
[1722689153646,1.23533737,62168.0,62167.0,0.009955]
[1722689153849,1.24933737,62168.0,62167.0,0.009955]
[1722689154019,1.23533737,62168.0,62167.0,0.009955]
[1722689154217,1.14454935,62168.0,62167.0,0.009955]
[1722689154417,1.23565414,62168.0,62167.0,0.009955]
[1722689154788,1.14854935,62168.0,62167.0,0.009955]
[1722689155808,1.17254935,62168.0,62167.0,0.009955]
[1722689156043,1.2498304,62168.0,62167.0,0.009955]
[1722689157177,1.2496008,62168.0,62167.0,0.009955]
[1722689157646,1.24949117,62168.0,62167.0,0.009955]
[1722689158251,1.31199117,62168.0,62167.0,0.009955]
[1722689158807,1.55327217,62168.0,62167.0,0.009955]
[1722689159020,1.63277217,62168.0,62167.0,0.009955]
[1722689160025,2.09012734,62168.0,62167.0,0.009955]
[1722689160229,1.91877217,62168.0,62167.0,0.00118952]
[1722689160439,1.90477217,62168.0,62167.0,0.00118952]
[1722689160648,1.91877217,62168.0,62167.0,0.00118952]
[1722689160953,1.91838296,62168.0,62167.0,0.00118952]
[1722689161090,1.93238296,62168.0,62167.0,0.00118952]
[1722689161300,1.94238296,62168.0,62167.0,0.00118952]
[1722689161498,1.92838296,62168.0,62167.0,0.00118952]
[1722689161843,1.92838296,62168.0,62162.0,0.009955]
[1722689161844,1.236854,62163.0,62162.0,0.009955]
[1722689162050,1.70966585,62163.0,62162.0,0.009955]
[1722689162259,1.97396685,62163.0,62162.0,0.009955]
[1722689162484,1.98396685,62163.0,62162.0,0.009955]
[1722689162693,1.095958,62157.0,62156.0,0.009955]
[1722689162903,3.37426985,62157.0,62156.0,0.009955]
[1722689163541,3.6156956,62157.0,62156.0,0.009955]
[1722689163945,3.4461956,62157.0,62156.0,0.009955]
[1722689164244,3.53894754,62157.0,62156.0,0.009955]
[1722689164481,4.52094754,62157.0,62156.0,0.009955]
[1722689164905,1.537043,62152.0,62151.0,0.00913276]
[1722689165110,1.8941566,62152.0,62151.0,0.00913276]
[1722689165329,2.1354996,62152.0,62151.0,0.00913276]
[1722689166428,2.1354996,62152.0,62150.0,7.6e-07]
[1722689166429,1.337408,62151.0,62150.0,7.6e-07]
[1722689166747,0.120697,62139.0,62138.0,0.009955]
[1722689167067,2.73613824,62139.0,62138.0,0.009955]
[1722689167869,2.75013824,62139.0,62138.0,0.009955]
[1722689168413,2.99153224,62139.0,62138.0,0.009955]
[1722689169113,2.75013824,62139.0,62138.0,0.009955]
[1722689169602,2.99153224,62139.0,62138.0,0.009955]
[1722689170112,3.00553224,62139.0,62138.0,0.009955]
[1722689170930,3.01553224,62139.0,62138.0,0.009955]
[1722689171125,3.09254803,62139.0,62138.0,0.009955]
[1722689171795,3.07854803,62139.0,62138.0,0.009955]
[1722689171998,3.24804803,62139.0,62138.0,0.009955]
[1722689172224,3.32594803,62139.0,62138.0,0.009955]
[1722689172432,3.15644803,62139.0,62138.0,0.009955]
[1722689172632,3.14244803,62139.0,62138.0,0.009955]
[1722689172838,0.31,62129.0,62128.0,0.009955]
[1722689173010,0.362184,62123.0,62122.0,0.0658]
[1722689173369,2.71335524,62123.0,62122.0,0.0658]
[1722689173487,0.120734,62120.0,62119.0,0.0658]
[1722689173691,1.02559724,62120.0,62119.0,0.0658]
[1722689173935,1.02559724,62120.0,62116.0,0.0816]
[1722689173936,0.362218,62117.0,62116.0,0.1474]
[1722689174153,1.12563524,62117.0,62116.0,0.1474]
[1722689174558,1.36711424,62117.0,62116.0,0.1474]
[1722689175058,0.603747,62112.0,62111.0,0.1474]
[1722689175232,0.78420624,62112.0,62111.0,0.1474]
[1722689175432,1.02570524,62112.0,62111.0,0.1474]
[1722689176269,1.02570524,62112.0,62104.0,0.009955]
[1722689176270,0.845341,62105.0,62104.0,0.009955]
[1722689176454,1.73880024,62105.0,62104.0,0.009955]
[1722689176654,1.83880024,62105.0,62104.0,0.03103255]
[1722689176857,1.83880024,62105.0,62104.0,0.009955]
[1722689177225,2.09032624,62105.0,62104.0,0.009955]
[1722689177433,1.84880024,62105.0,62104.0,0.009955]
[1722689177831,1.86180024,62105.0,62104.0,0.009955]
[1722689178055,1.63427424,62105.0,62104.0,0.17902013]
[1722689178256,1.63427424,62105.0,62104.0,0.157815]
[1722689178437,1.36974824,62105.0,62104.0,0.17898013]
[1722689178638,1.26974824,62105.0,62104.0,0.18826164]
[1722689178914,1.28374824,62105.0,62104.0,0.18826164]
[1722689179121,1.26974824,62105.0,62104.0,0.18826164]
[1722689179322,1.49727424,62105.0,62104.0,0.18826164]
[1722689179499,1.25574824,62105.0,62104.0,0.18826164]
[1722689179732,1.02822224,62105.0,62104.0,0.18826164]
[1722689179931,1.26974824,62105.0,62104.0,0.18826164]
[1722689180116,1.73880024,62105.0,62104.0,0.17898013]
[1722689180356,1.76180024,62105.0,62104.0,0.157815]
[1722689180568,1.26974824,62105.0,62104.0,0.16709651]
[1722689180770,1.51127424,62105.0,62104.0,0.16709651]
[1722689180975,1.26974824,62105.0,62104.0,0.16709651]
[1722689181196,0.92145924,62105.0,62104.0,0.16709651]
[1722689181406,0.75,62105.0,62104.0,0.28786151]
[1722689181613,0.014,62105.0,62104.0,0.77092151]
[1722689181814,0.028,62105.0,62104.0,0.55055742]
[1722689182017,0.014,62105.0,62104.0,0.30902742]
[1722689182219,0.36225,62112.0,62111.0,0.15718151]
[1722689182423,0.51970924,62112.0,62111.0,0.15718151]
[1722689183015,1.00270724,62112.0,62111.0,0.1479]
[1722689183781,0.76120824,62112.0,62111.0,0.1479]
[1722689184582,0.83971524,62112.0,62111.0,0.1479]
[1722689184775,0.83971524,62112.0,62111.0,0.15718151]
[1722689184980,0.53370924,62112.0,62111.0,0.1479]
[1722689185461,0.78920824,62112.0,62111.0,0.1479]
[1722689186251,1.03070724,62112.0,62111.0,0.1479]
[1722689186696,0.78920824,62112.0,62111.0,0.1479]
[1722689187505,0.603795,62107.0,62106.0,0.0828]
[1722689187711,0.603795,62107.0,62104.0,0.009915]
[1722689187712,0.120763,62105.0,62104.0,0.009915]
[1722689187927,1.00280024,62105.0,62104.0,0.009915]
[1722689188135,1.02580024,62105.0,62104.0,0.009915]
[1722689188748,1.26732624,62105.0,62104.0,0.009915]
[1722689188952,1.26713262,62105.0,62104.0,0.009915]
[1722689189155,1.26713262,62105.0,62104.0,0.03107287]
[1722689189366,1.28113262,62105.0,62104.0,0.03107287]
[1722689189579,1.29513262,62105.0,62104.0,0.03107287]
[1722689189791,1.40513262,62105.0,62104.0,0.03107287]
[1722689190000,1.39113262,62105.0,62104.0,0.03107287]
[1722689190175,1.39113262,62105.0,62104.0,0.009915]
[1722689190415,1.40513262,62105.0,62104.0,0.009915]
[1722689190628,1.15360662,62105.0,62104.0,0.009915]
[1722689190849,1.13960662,62105.0,62104.0,0.157815]
[1722689191048,1.15360662,62105.0,62104.0,0.157815]
[1722689191452,1.13960662,62105.0,62104.0,0.157815]
[1722689191628,1.12560662,62105.0,62104.0,0.157815]
[1722689191783,1.13960662,62105.0,62104.0,0.157815]
[1722689191994,0.87508062,62105.0,62104.0,0.157815]
[1722689192383,0.88908062,62105.0,62104.0,0.157815]
[1722689192582,0.87508062,62105.0,62104.0,0.157815]
[1722689192713,0.88908062,62105.0,62104.0,0.157815]
[1722689193263,0.88908062,62105.0,62104.0,0.075015]
[1722689193264,1.11660662,62105.0,62104.0,0.075015]
[1722689193463,1.13960662,62105.0,62104.0,0.009915]
[1722689193683,1.15360662,62105.0,62104.0,0.009915]
[1722689193909,1.13960662,62105.0,62104.0,0.009915]
[1722689194102,1.39113262,62105.0,62104.0,0.009915]
[1722689194315,1.16360662,62105.0,62104.0,0.009915]
[1722689194517,1.13960662,62105.0,62104.0,0.009915]
[1722689194868,1.15360662,62105.0,62104.0,0.009915]
[1722689195073,1.13960662,62105.0,62104.0,0.009915]
[1722689195290,1.12560662,62105.0,62104.0,0.009915]
[1722689195488,1.15360662,62105.0,62104.0,0.009915]
[1722689195946,1.13960662,62105.0,62104.0,0.009915]
[1722689196155,1.12560662,62105.0,62104.0,0.009915]
[1722689196478,1.13960662,62105.0,62104.0,0.009915]
[1722689196701,0.87508062,62105.0,62104.0,0.086015]
[1722689196962,0.86108062,62105.0,62104.0,0.086015]
[1722689197165,0.86108062,62105.0,62104.0,0.146215]
[1722689197372,0.88808062,62105.0,62104.0,0.146215]
[1722689197573,0.87408062,62105.0,62104.0,0.146215]